Cogmind - Beta 13 @@@ ROGUE MODE // 2024.06.20 @ 05:48:17 Player: tsintsir Result: Destroyed by G-34 Mercenary with Small Laser Performance ------------- Evolutions (0) 0 Regions Visited (1) 200 Robots Destroyed (27) 135 Value Destroyed (506) 506 Prototype IDs (2) 40 Alien Tech Used (0) 0 Bonus (0) 0 TOTAL SCORE: 881 Bonus ------- None Cogmind --------- Core Integrity 0/250 Matter 348/350 Energy 125/125 System Corruption 2% Temperature Cool (6) Movement Rolling (100) Location -10/Materials Parts ------- > --- POWER (1) -------- Light Ion Engine > --- PROPULSION (2) --- Compact Wheel > --- UTILITY (2) ------ Medium Storage Unit Small Matter Pod > --- WEAPON (2) ------- Mining Claw > --- INVENTORY (10) --- Heat Sink Small Storage Unit Weight Redist. System Small Laser Small Laser Small Laser Small Laser Datajack Mining Laser Mining Claw Peak State ------------ > --- POWER ------------ Ion Engine > --- PROPULSION ------- Light Treads Light Treads > --- UTILITY ---------- Medium Storage Unit Small Matter Pod > --- WEAPON ----------- Small Laser Small Laser > --- INVENTORY -------- Ion Engine Heat Sink Small Storage Unit Weight Redist. System Small Laser Assault Rifle Datajack Hammer Mining Claw [Rating: 8] Favorites ----------- Power Ion Engine Engine Ion Engine Propulsion Light Treads Treads Light Treads Wheel Compact Wheel Utility Small Storage Unit Storage Small Storage Unit Weapon Small Laser Energy Gun Small Laser Ballistic Gun Assault Rifle Impact Weapon Hammer Slashing Weapon Mining Claw Special Melee Weapon Datajack Build | -11 -10 ------- Run | Yrd Mat Slots Evolved . | . . Power . | . . Propulsion . | . . Utility . | . . Weapon . | . . Parts Attached 32 | 6 26 Power 3 | 1 2 Engine 3 | 1 2 Core . | . . Reactor . | . . Propulsion 4 | 2 2 Treads 2 | 2 . Leg . | . . Wheel 2 | . 2 Hover . | . . Flight . | . . Utility 3 | 1 2 Device . | . . Storage 3 | 1 2 Processor . | . . Hackware . | . . Protection . | . . Artifact . | . . Weapon 22 | 2 20 Energy Gun 9 | 1 8 Energy Cannon . | . . Ballistic Gun 3 | 1 2 Ballistic Cannon . | . . Launcher . | . . Special Weapon . | . . Impact Weapon 3 | . 3 Slashing Weapon 3 | . 3 Piercing Weapon . | . . Special Melee Weapon 4 | . 4 Unidentified Prototypes . | . . Parts Lost 6 | . 6 Power 2 | . 2 Propulsion 3 | . 3 Utility . | . . Weapon 1 | . 1 Highest Loss Streak 3 | . 3 To Critical Strikes . | . . Average Slot Usage (%) 94 | . 94 Engine 13 | . 13 Treads 19 | . 19 Wheel 6 | . 6 Storage 25 | . 25 Energy Gun 7 | . 7 Ballistic Gun 7 | . 7 Impact Weapon 8 | . 8 Slashing Weapon 2 | . 2 Special Melee Weapon 1 | . 1 Naked Turns . | . . Heaviest Build 20 | 13 20 Greatest Support 40 | 40 40 Greatest Overweight (x) 6 | . 6 Average Overweight (x) . | . . Largest Inventory Capacity 10 | 8 10 Average Capacity 8 | 7 9 Most Carried 10 | 2 10 Average Carried 4 | . 6 Final Capacity 10 | 8 10 Final Carried 10 | . 10 Class Distribution -------------------- 100% | Mutant Dominant Class ---------------- Mutant | -10/Materials Resources | -11 -10 ----------- Run | Yrd Mat Matter Collected 649 | 260 389 Remotely . | . . Salvage Created 798 | 53 745 Parts 37 | . 37 Haulers Intercepted 1 | . 1 Recyclers Shooed . | . . Parts Field Recycled . | . . Retrieved Matter . | . . Parts Self-Destructed . | . . Prevented . | . . Kills | -11 -10 ------- Run | Yrd Mat Combat Hostiles Destroyed 19 | . 19 Melee 12 | . 12 Guns 5 | . 5 Classes Destroyed 8 | 1 7 Worker 1 | . 1 Hauler 1 | . 1 Recycler 2 | 1 1 Mechanic 1 | . 1 Operator 1 | . 1 Watcher 2 | . 2 Swarmer 9 | . 9 Grunt 10 | . 10 Best Kill Streak 3 | 1 3 Combat Bots Only 3 | . 3 Max Kills in Single Turn 1 | 1 1 Gunslinging . | . . Exploded . | . . Melee 1 | . 1 Uniques/NPCs Destroyed . | . . Combat | -11 -10 -------- Run | Yrd Mat Hostile Shots Fired 151 | . 151 Missed 40 | . 40 Damage Taken 1082 | . 1082 Core 259 | . 259 Absorbed by Shields . | . . Core Remaining (%) 100 | 100 . Volleys Fired 39 | 5 34 Largest 2 | 2 2 Hottest 80 | 60 80 Shots Fired 55 | 10 45 Gun 55 | 10 45 Cannon . | . . Launcher . | . . Special . | . . Kinetic 28 | 5 23 Thermal 27 | 5 22 Explosive . | . . Electromagnetic . | . . Robot Hit Streak 7 | 6 7 Robot Miss Streak 4 | 3 4 Penetration Max . | . . Secondary Targets . | . . Shots Hit Robots 82 | 6 76 Core Hits 28 | 2 26 Critical Kills 1 | . 1 Critical Parts Destroyed 4 | . 4 Critical Strikes 5 | . 5 Smash 5 | . 5 Melee Attacks 74 | . 74 Impact 54 | . 54 Slashing 19 | . 19 Piercing . | . . Sneak Attacks 3 | . 3 Combat Hostiles . | . . Follow-up Attacks 1 | . 1 Damage Inflicted 1650 | 74 1576 Guns 410 | 74 336 Cannons . | . . Explosions . | . . Melee 1235 | . 1235 Ramming 5 | . 5 Kinetic 231 | 42 189 Thermal 179 | 32 147 Explosive . | . . Electromagnetic . | . . Impact 887 | . 887 Slashing 348 | . 348 Piercing . | . . Highest Corruption 2 | . 2 Average Corruption 1 | . 1 Corruption Purged . | . . Corruption Blocked . | . . Effects 2 | . 2 Matter Fused 1 | . 1 Data Loss (minor) 1 | . 1 Overload Shots . | . . Overflow Damage 193 | . 193 Projectiles . | . . Explosions . | . . Melee 193 | . 193 Knockbacks 3 | . 3 Impact 3 | . 3 Kinetic . | . . Secondary . | . . Self-Inflicted Damage 2 | . 2 Shots . | . . Rammed 1 | . 1 Targets Rammed 1 | . 1 Kicked . | . . Crushed . | . . Highest Temperature 120 | 2 120 Average Temperature 42 | 2 43 Received Heat Transfer 372 | . 372 Siege Activations . | . . Robots Corrupted . | . . Combat Hostiles . | . . Parts Fried 7 | . 7 Impact Corruptions 11 | . 11 Robots Melted . | . . Combat Hostiles . | . . Parts Melted . | . . Heat Transferred 400 | 75 325 Parts Sabotaged . | . . Parts Stolen . | . . Parts Stripped . | . . Power Chain Reactions . | . . Alert | -11 -10 ------- Run | Yrd Mat Peak Influence 207 | 5 207 Initial . | . . Average 54 | 2 87 Maximum Alert Level 1 | . 1 Low Security (%) 99 | 100 99 Level 1 . | . . Level 2 . | . . Level 3 . | . . Level 4 . | . . Level 5 . | . . High Security . | . . Max Security . | . . Squads Dispatched 5 | . 5 Investigation 3 | . 3 Extermination . | . . Reinforcement 2 | . 2 Assault . | . . Garrison . | . . Intercept . | . . Searches Triggered . | . . Construction Impeded . | . . Haulers Reinforced . | . . Active Scanning Responses . | . . Cargo Convoy Interrupts . | . . Stealth | -11 -10 --------- Run | Yrd Mat Distress Signals 3 | 1 2 Communications Jammed . | . . Distress Signals . | . . Times Spotted 32 | 1 31 Peak Tracking Total 4 | 1 4 Tactical Retreats 3 | . 3 Traps | -11 -10 ------- Run | Yrd Mat Traps Triggered 1 | . 1 Indirectly . | . . Trap Hack Attempts 11 | . 11 Triggered . | . . Disarmed 2 | . 2 Reprogrammed . | . . Reused . | . . Traps Extracted . | . . Installed . | . . Triggered . | . . Machines | -11 -10 ---------- Run | Yrd Mat Machines Disabled . | . . Max in Single Turn . | . . Machines Repaired . | . . Machines Dismantled . | . . Machines Sabotaged . | . . Overloaded Fab Kills . | . . Hacking | -11 -10 --------- Run | Yrd Mat Machines Accessed 6 | . 6 Terminals 5 | . 5 Fabricators . | . . Repair Stations 1 | . 1 Recycling Units . | . . Scanalyzers . | . . Garrison Access . | . . Total Hacks 19 | . 19 Successful 8 | . 8 Failed 11 | . 11 Catastrophic 3 | . 3 Database Lockouts . | . . Manual . | . . Terminals 15 | . 15 Fabricators . | . . Repair Stations 4 | . 4 Recycling Units . | . . Scanalyzers . | . . Garrison Access . | . . Terminal Hacks 7 | . 7 Record 2 | . 2 Robot Analysis 1 | . 1 Prototype ID Bank 1 | . 1 Branch Access Points 1 | . 1 Terminal Index 1 | . 1 Alert Level 1 | . 1 Fabricator Hacks . | . . Repair Station Hacks 1 | . 1 Scan Component 1 | . 1 Recycling Unit Hacks . | . . Scanalyzer . | . . Garrison Access Hacks . | . . Unauthorized Hacks . | . . Terminals . | . . Fabricators . | . . Repair Stations . | . . Recycling Units . | . . Scanalyzers . | . . Garrison Access . | . . Data Cores Recovered . | . . Used . | . . Hacking Detections 5 | . 5 Full Trace Events 4 | . 4 Feedback Events 1 | . 1 Corruption 1 | . 1 Feedback Blocked . | . . Robot Schematics Acquired . | . . Robots Built . | . . Authchips . | . . Time . | . . Total Robot Build Rating . | . . Part Schematics Acquired . | . . Parts Built . | . . Authchips . | . . Time . | . . Total Part Build Rating . | . . Parts Repaired . | . . Time . | . . Parts Recycled . | . . Recycled Matter . | . . Retrieved Matter . | . . Retrieved Components . | . . Parts Scanalyzed . | . . Part Schematics Acquired . | . . Parts Damaged . | . . Bothacking | -11 -10 ------------ Run | Yrd Mat Used RIF Installer . | . . Robots Hacked 1 | . 1 Non-combat 1 | . 1 Combat . | . . Robot Hacks Applied 1 | . 1 parse_system 1 | . 1 Relay Couplers Released . | . . Fabnet Peak Effective % . | . . Robots Rewired . | . . Allies Hacked . | . . Hacks Repelled . | . . Allies | -11 -10 -------- Run | Yrd Mat Total Allies . | . . Largest Group . | . . Highest-Rated Group . | . . Highest-Rated Ally . | . . Total Orders . | . . Ally Attacks . | . . Total Damage . | . . Kills . | . . Allies Corrupted . | . . Allies Melted . | . . Intel | -11 -10 ------- Run | Yrd Mat Robot Analysis Total 1 | . 1 Derelict Logs Recovered . | . . Drone Launches . | . . Drone Recoveries . | . . Exploration | -11 -10 ------------- Run | Yrd Mat Turns Passed 2062 | 792 1270 Spaces Moved 801 | 209 592 Core 9 | 4 5 Treads 628 | 205 423 Legs . | . . Wheels 164 | . 164 Hover . | . . Flight . | . . Fastest Speed 50 | 50 100 Average Speed 148 | 157 145 Slowest Speed 350 | 160 350 Overloaded Moves . | . . Propulsion Burnouts . | . . Robots Hopped . | . . Cave-ins Triggered . | . . Exploration Rate (%) 53 | 15 91 Regions Visited 1 Branch Regions . Pre-discovered Areas . | . . Known Exits Taken . | . . Unknown Exits Taken 1 | 1 . Scrap Searched . | . . Spaces Dug . | . . Terrain Destroyed . | . . Melee . | . . Projectile . | . . AOE . | . . Terrain Rammed . | . . Walls Destroyed . | . . Machines Disabled . | . . Actions | -11 -10 --------- Run | Yrd Mat Total 1501 | 661 840 Wait 498 | 436 62 Move 800 | 208 592 Hop . | . . Pick Up 24 | 6 18 Fast Attach . | . . Attach 32 | 6 26 Detach 21 | . 21 Swap . | . . Drop 3 | . 3 Fire 39 | 5 34 Melee 72 | . 72 Ram 1 | . 1 Kick . | . . Crush . | . . Escape Stasis . | . . Rewire . | . . Trap 11 | . 11 Miscellaneous . | . . Route ------- -11/Scrapyard -10/Materials (discovered 4 exits: [*Mat x3] / *Min) History --------- Turn | Location | Event 23 | -11/Scrapyard | Discovered new exit (range 16) 678 | -11/Scrapyard | Assembled infested the area 793 | -11/Scrapyard | Entered Materials 794 | -10/Materials | Build established: Mutant 969 | -10/Materials | Discovered new exit (range 15) 1329 | -10/Materials | Discovered new exit (range 9) 1488 | -10/Materials | Discovered new exit (range 16) 1639 | -10/Materials | Discovered new exit (range 9) 1651 | -10/Materials | Core integrity fell below 50% 1722 | -10/Materials | Lost 3 parts (1p2n) 1981 | -10/Materials | Identified exit to Mines 2015 | -10/Materials | Core integrity fell below 20% 2063 | -10/Materials | Destroyed by G-34 Mercenary with Small Laser Last Messages --------------- for navigation, making patrolling in their vicinity relatively difficult. >>Access(Branch) Found 1 branch access point: (58,14) Mines Map updated. Feedback: System corruption (+1%). ALERT: Suspicious activity at Terminal M001. Dispatching Investigation squad. K-01 Serf cleans the Recycling Unit. K-01 Serf destroyed. System corrupted: Matter fused (-9). G-34 Mercenary destroyed. Hammer follow-up attack on G-34 Mercenary. Com. Wheel destroyed. G-34 Mercenary destroyed. Acquired 42 matter. System corrupted: Component data lost. Dropped Hammer. Acquired Mining Claw. Map ----- +----------------------------------------------------+ | | | | | | | | | | | | | | | | | | | | | | | | | | | | | | | | | | | | | ????????????????????########?????????????????????? | | ????????????????????# #?????????????????????? | | ????????????????????#!! #?????????????????????? | | ????????????????????#!! #?????????????????????? | | ??????????????????###!! #???????????#########?? | | ?????????????????? # #???????????# #?? | | ?????#####???????? # /%*#???????????# #?? | | ###### ########## #####@############## T #?? | | # <%[% =% !*= #?? | | """ # = ### #####= ########### #?? | | """ # ###+##### #?##"""##?# """ #?? | | """*# ## #g ###"!!!"### """ #?? | | =+% ## # ##"" ""## """ #?? | | # ## # ## ## #?? | | "" # #### ## """ + ## > ## #?? | | "" # #??# ## """ #% ## ## #######?? | | " = # #??# ## """ #% ## ## ######### | | ###### #??# #########+## #?# #?# # | | ?????# #??# ## # #??# #??# # | | ?????# #??# ## #r#### #### # """ | | ?????# #??# ## """ """ # # """"" | | ?????# #?? # """ """ + + """"" | | ?????# #?? # """ """ # # """"" | | ?????# #??? ?+ #""" *** # """ | | ###### #???????# #"Y ** # | | #???????# #""" * # | | #??????############ % #####+### | | #??????#^ ## % #???# #?? | | ##+#######??????# # ######+#+##### #?? | | #????????# / # #??#! %[ ## #?? | | """ #????????# %+ T #??# """ ## #?? | | """"" #????????# # #??# """ ## #?? | +----------------------------------------------------+ Best States ------------- Heat Dissipation 25 Energy Generation 10 Energy Capacity 250 Matter Stores 350 Matter Capacity 350 Sight Range 16 Terrain Scan Density 10 Evasion (%) 40 Recoil Reduction 2 Item Schematics ----------------- None Robot Schematics ------------------ None Fabricated ------------ Nothing Alien Tech Used ----------------- None Achievements -------------- Curiosity Killed The Cat Challenges ------------ None Game ------ Seed TrackerWardroneLeg Manual? 0 Play Time 00:23:31 Cumulative 2.7 hours Start 2024.06.20 @ 05:22:27 End 2024.06.20 @ 05:48:17 Sessions 1 Manual Loads 0 Difficulty Rogue Special Mode None Game No. 5 Rogue 5 Adventurer 0 Explorer 0 Win Type - Total 0 Types 0/0/0/0/0/0/0/0/0 Lore% 3 Gallery% 8 Achievement% 9 Wizard Run 0 Options --------- Layout 1 ASCII 0 Keyboard 0 Movement Mouse Keybinds 0 Fullscreen 2 Font 32/SmallcapsGlow Map View 50x35 Zoom Use 0% Tactical HUD 0 Map Filters NONE Filters NONE Steam 1 RUN: 535e2638-0dbc-40ba-9b71-d305b2f6289b